fUST/lending_fUST_20250730
["ID","MTS","AMOUNT","RATE_DAILY","PERIOD"]
[376170811,1753883449383,-681.51148073,0.000225,7]
[376170812,1753883449394,-151.0,0.000225,7]
[376170813,1753883449403,-156.422236,0.000225,7]
[376170814,1753883449412,-151.0,0.000225,7]
[376170815,1753883449422,-151.0,0.000225,7]
[376170816,1753883449431,-151.0,0.000225,7]
[376170817,1753883449441,-151.0,0.000225,7]
[376170818,1753883449450,-151.0,0.000225,7]
[376170819,1753883449460,-151.0,0.000225,7]
[376170820,1753883449469,-151.0,0.000225,7]
[376170821,1753883449478,-224.729986,0.000225,7]
[376170822,1753883449488,-224.729986,0.000225,7]
[376170823,1753883449497,-151.0,0.000225,7]
[376170824,1753883449506,-167.414223,0.000225,7]
[376170825,1753883449515,-167.414226,0.000225,7]
[376170826,1753883449525,-151.0,0.000225,7]
[376170827,1753883449534,-151.0,0.000225,7]
[376170828,1753883449544,-151.0,0.000225,7]
[376170829,1753883449553,-151.0,0.000225,7]
[376170830,1753883449563,-171.461774,0.000225,7]
[376170831,1753883449572,-171.461774,0.000225,7]
[376170832,1753883449581,-196.061424,0.000225,7]
[376170833,1753883449590,-196.061424,0.000225,7]
[376170834,1753883449600,-306.435197,0.000225,7]
[376170835,1753883449609,-306.435197,0.000225,7]
[376170836,1753883449619,-196.875457,0.000225,7]
[376170837,1753883449628,-135901.3498768,0.00022505,2]
[376170838,1753883449639,-151.0,0.00022505,7]
[376170839,1753883449648,-171.461774,0.00022505,7]
[376170840,1753883449658,-171.461774,0.00022505,7]
[376170841,1753883449667,-196.061424,0.00022505,7]
[376170842,1753883449676,-196.061424,0.00022505,7]
[376170843,1753883449686,-306.435197,0.00022505,7]
[376170844,1753883449695,-306.435197,0.00022505,7]
[376170845,1753883449704,-560.0,0.00022542,2]
[376170846,1753883449713,-1116.09055691,0.00022555,7]
[376170847,1753883449723,-1336.08,0.00022568,2]
[376170848,1753883449732,-151.0,0.00022588,2]
[376170849,1753883449742,-1475.99321028,0.000226,4]
[376170850,1753883449751,-2000.0,0.00022616,2]
[376170851,1753883449760,-258.6,0.00022649,5]
[376170852,1753883449769,-460.0,0.00022652,2]
[376170853,1753883449778,-1082.98,0.00022653,2]
[376170854,1753883449787,-539.61,0.00022653,2]
[376170855,1753883449796,-460.0,0.00022653,2]
[376170856,1753883449805,-568.07,0.00022653,2]
[376170857,1753883449815,-621.16,0.00022654,2]
[376170858,1753883449824,-582.44756443,0.00022654,2]
[376170859,1753883449833,-958.11,0.00022655,2]
[376170860,1753883449842,-648.39,0.00022655,2]
[376170861,1753883449852,-2542.62,0.00022655,2]
[376170862,1753883449864,-655.42,0.00022655,2]
[376170863,1753883449874,-699.34,0.00022655,2]
[376170864,1753883449884,-633.61,0.00022655,2]
[376170865,1753883449894,-489.5,0.00022655,2]
[376170866,1753883449903,-151.0,0.00022656,7]
[376170867,1753883449914,-151.0,0.00022688,2]
[376170868,1753883449924,-460.59675358,0.000227,3]
[376170869,1753883449933,-287.979816,0.00022708,7]
[376170870,1753883449943,-287.979816,0.00022708,7]
[376170871,1753883449952,-150.602035,0.00022717,15]
[376170872,1753883449962,-325.0,0.00022746,2]
[376170873,1753883449971,-151.0,0.00022788,2]
[376170874,1753883449980,-1116.09055691,0.00022797,7]
[376170875,1753883449989,-325.0,0.00022837,2]
[376170876,1753883449999,-150.0,0.00022873,2]
[376170877,1753883450007,-151.0,0.00022873,7]
[376170878,1753883450016,-151.0,0.00022873,7]
[376170879,1753883450025,-253.950975,0.00022873,7]
[376170880,1753883450034,-253.950975,0.00022873,7]
[376170881,1753883450045,-151.0,0.00022873,7]
[376170882,1753883450054,-151.0,0.00022873,7]
[376170883,1753883450063,-1402.776555,0.0002288,5]
[376170884,1753883450072,-151.0,0.00022888,2]
[376170885,1753883450082,-1423.0,0.0002289,2]
[376170886,1753883450091,-143198.35174604,0.000229,7]
[376170887,1753883450100,-151.0,0.000229,7]
[376170888,1753883450110,-151.0,0.000229,7]
[376170889,1753883450119,-287.979816,0.000229,7]
[376170890,1753883450129,-287.979816,0.000229,7]
[376170891,1753883450140,-151.0,0.000229,7]
[376170892,1753883450149,-329.520935,0.000229,7]
[376170894,1753883450159,-329.520935,0.000229,7]
[376170896,1753883450169,-151.0,0.000229,7]
[376170898,1753883450178,-253.950975,0.000229,7]
[376170900,1753883450186,-253.950975,0.000229,7]
[376170901,1753883450196,-151.0,0.000229,7]
[376170903,1753883450206,-151.0,0.000229,7]
[376170905,1753883450215,-151.0,0.000229,7]
[376170907,1753883450224,-151.0,0.000229,7]
[376170909,1753883450234,-151.0,0.000229,7]
[376170911,1753883450243,-201.169137,0.000229,7]
[376170913,1753883450253,-151.0,0.000229,7]
[376170915,1753883450262,-1000.0,0.000229,5]
[376170917,1753883450271,-224.729986,0.000229,7]
[376170919,1753883450280,-224.729992,0.000229,7]
[376170921,1753883450290,-297.668888,0.000229,7]
[376170923,1753883450299,-151.0,0.000229,7]
[376170925,1753883450308,-255.811813,0.000229,7]
[376170927,1753883450317,-151.0,0.000229,7]
[376170929,1753883450328,-644.0,0.000229,2]
[376170931,1753883450337,-151.0,0.000229,7]
[376170932,1753883450346,-171.461774,0.000229,7]
[376170934,1753883450355,-171.461774,0.000229,7]
[376170936,1753883450365,-196.061424,0.000229,7]
[376170938,1753883450374,-196.061424,0.000229,7]
[376170940,1753883450384,-1500.0,0.000229,14]
[376170942,1753883450393,-1500.0,0.000229,14]
[376170944,1753883450403,-1500.0,0.000229,14]
[376170946,1753883450412,-1500.0,0.000229,14]
[376170948,1753883450422,-1500.0,0.000229,14]
[376170950,1753883450431,-1500.0,0.000229,14]
[376170952,1753883450440,-1036.18042,0.000229,14]
[376170954,1753883450449,-306.435197,0.000229,7]
[376170956,1753883450458,-306.435197,0.000229,7]
[376170958,1753883450467,-1000.0,0.0002292,5]
[376170959,1753883450476,-460.0,0.00022926,2]
[376170961,1753883450487,-1082.98,0.00022927,2]
[376170963,1753883450497,-539.61,0.00022927,2]
[376170965,1753883450506,-460.0,0.00022927,2]
[376170967,1753883450516,-568.07,0.00022927,2]
[376170969,1753883450525,-621.16,0.00022928,2]
[376170971,1753883450535,-958.11,0.00022929,2]
[376170973,1753883450544,-648.39,0.00022929,2]
[376170975,1753883450554,-2542.62,0.00022929,2]
[376170977,1753883450563,-655.42,0.00022929,2]
[376170979,1753883450572,-699.34,0.00022929,2]
[376170981,1753883450581,-633.61,0.00022929,2]
[376170983,1753883450590,-489.5,0.00022929,2]
[376170985,1753883450600,-500.0,0.00022938,2]
[376170987,1753883450608,-1500.0,0.00022938,2]
[376170989,1753883450617,-1000.0,0.0002294,5]
[376170991,1753883450627,-500.0,0.0002296,2]
[376170993,1753883450636,-2200.0,0.0002296,2]
[376170995,1753883450645,-1000.0,0.0002296,5]
[376170997,1753883450655,-150.0,0.00022973,2]
[376170999,1753883450664,-1000.0,0.0002298,2]
[376171000,1753883450673,-1000.0,0.0002298,5]
[376171002,1753883450682,-258.6,0.00022983,5]
[376171004,1753883450697,-151.0,0.00022988,2]
[376171006,1753883450706,-9810.06450645,0.00023,2]
[376171008,1753883450715,-42550.47132558,0.00023,15]
[376171009,1753883450724,-4865.56506389,0.00023,2]
[376171010,1753883450733,-25123.27414044,0.00023,2]
[376171011,1753883450743,-1337.90861257,0.00023,2]
[376171013,1753883450752,-160.0,0.00023,3]
[376171015,1753883450761,-160.0,0.00023,3]
[376171017,1753883450771,-160.0,0.00023,3]
[376171019,1753883450780,-160.0,0.00023,3]
[376171021,1753883450789,-160.0,0.00023,3]
[376171023,1753883450799,-2400.0,0.00023,10]
[376171025,1753883450808,-151.0,0.00023,7]
[376171027,1753883450817,-179.86083,0.00023,7]
[376171029,1753883450826,-200.0,0.00023,2]
[376171031,1753883450835,-1682.97,0.00023,7]
[376171033,1753883450844,-287.979816,0.00023,7]
[376171035,1753883450854,-287.979816,0.00023,7]
[376171037,1753883450865,-287.979816,0.00023,7]
[376171039,1753883450875,-287.979816,0.00023,7]
[376171040,1753883450886,-151.0,0.00023,7]
[376171042,1753883450896,-329.520935,0.00023,7]
[376171044,1753883450905,-329.520935,0.00023,7]
[376171046,1753883450915,-329.520935,0.00023,7]
[376171052,1753883451026,-329.520935,0.00023,7]
[376171054,1753883451036,-231.43925844,0.00023,3]
[376171056,1753883451046,-151.0,0.00023,7]
[376171058,1753883451056,-253.950975,0.00023,7]
[376171060,1753883451065,-253.950966,0.00023,7]
[376171062,1753883451075,-17822.48017942,0.00023,7]
[376171063,1753883451085,-151.0,0.00023,7]
[376171064,1753883451095,-151.0,0.00023,7]
[376171065,1753883451106,-151.0,0.00023,7]
[376171066,1753883451116,-151.0,0.00023,7]
[376171067,1753883451126,-151.0,0.00023,7]
[376171068,1753883451137,-244.204514,0.00023,7]
[376171069,1753883451146,-151.0,0.00023,7]
[376171070,1753883451156,-151.0,0.00023,7]
[376171071,1753883451166,-151.0,0.00023,7]
[376171072,1753883451177,-172.644089,0.00023,7]
[376171074,1753883451187,-151.0,0.00023,7]
[376171076,1753883451197,-151.0,0.00023,7]
[376171078,1753883451207,-151.0,0.00023,7]
[376171080,1753883451227,-151.0,0.00023,7]
[376171082,1753883451236,-151.0,0.00023,7]
[376171084,1753883451245,-151.0,0.00023,7]
[376171086,1753883451254,-1000.0,0.00023,5]
[376171087,1753883451264,-1755.0,0.00023,3]
[376171089,1753883451273,-1755.0,0.00023,3]
[376171091,1753883451283,-1755.0,0.00023,3]
[376171093,1753883451292,-1755.0,0.00023,3]
[376171095,1753883451302,-1162.58663712,0.00023,3]
[376171097,1753883451311,-325.0,0.00023,3]
[376171099,1753883451321,-325.0,0.00023,3]
[376171101,1753883451331,-325.0,0.00023,3]
[376171103,1753883451341,-325.0,0.00023,3]
[376171105,1753883451350,-325.0,0.00023,3]
[376171107,1753883451360,-325.0,0.00023,3]
[376171109,1753883451370,-325.0,0.00023,3]
[376171111,1753883451380,-325.0,0.00023,3]
[376171113,1753883451391,-325.0,0.00023,3]
[376171115,1753883451401,-325.0,0.00023,3]
[376171117,1753883451410,-325.0,0.00023,3]
[376171119,1753883451420,-325.0,0.00023,3]
[376171121,1753883451429,-325.0,0.00023,3]
[376171123,1753883451438,-325.0,0.00023,3]
[376171125,1753883451448,-325.0,0.00023,3]
[376171126,1753883451457,-325.0,0.00023,3]
[376171128,1753883451466,-325.0,0.00023,3]
[376171130,1753883451476,-325.0,0.00023,3]
[376171132,1753883451485,-325.0,0.00023,3]
[376171134,1753883451494,-325.0,0.00023,3]
[376171136,1753883451504,-325.0,0.00023,3]
[376171138,1753883451513,-316.85729207,0.00023,3]
[376171139,1753883451522,-151.0,0.00023,7]
[376171140,1753883451530,-207.53167,0.00023,7]
[376171141,1753883451540,-1002.043352,0.00023,2]
[376171142,1753883451549,-855.8237,0.00023,2]
[376171143,1753883451558,-151.0,0.00023,7]
[376171144,1753883451567,-171.461774,0.00023,7]
[376171145,1753883451576,-171.46177,0.00023,7]
[376171146,1753883451586,-196.061424,0.00023,7]
[376171147,1753883451595,-196.061428,0.00023,7]
[376171148,1753883451604,-179.0,0.00023,7]
[376171149,1753883451614,-306.435197,0.00023,7]
[376171150,1753883451623,-306.435196,0.00023,7]
[376171151,1753883451632,-841.2246943,0.00023,3]
[376171152,1753883451643,-160.0,0.00023,2]
[376171153,1753883451652,-160.0,0.00023,3]
[376171154,1753883451661,-216.14611358,0.00023,3]
[376171155,1753883451671,-182.0,0.00023014,7]
[376171156,1753883451680,-1000.0,0.00023021,2]
[376171157,1753883451689,-501.94752699,0.00023021,2]
[376171158,1753883451699,-400.0,0.00023021,2]
[376171159,1753883451708,-1017.79606695,0.00023021,2]
[376171160,1753883451717,-1000.0,0.00023021,2]
[376171161,1753883451727,-1000.0,0.00023021,2]
[376171162,1753883451736,-1000.0,0.00023021,2]
[376171163,1753883451745,-1011.05197968,0.00023021,2]
[376171164,1753883451754,-1116.09055691,0.00023038,8]
[376171165,1753883451763,-210.0,0.00023041,9]
[376171166,1753883451771,-151.0,0.00023088,2]
[376171167,1753883451781,-660.0,0.0002309,2]
[376171168,1753883451790,-13618.82,0.000231,7]
[376171169,1753883451799,-1336.08,0.00023136,2]
[376171171,1753883451809,-2500.0,0.00023164,2]
[376171173,1753883451818,-163.559441,0.00023182,2]
[376171175,1753883451827,-151.0,0.00023188,2]
[376171177,1753883451836,-460.0,0.000232,2]
[376171179,1753883451846,-1082.98,0.00023201,2]
[376171181,1753883451855,-539.61,0.00023201,2]
[376171183,1753883451867,-460.0,0.00023201,2]
[376171185,1753883451877,-568.07,0.00023201,2]
[376171187,1753883451887,-621.16,0.00023202,2]
[376171189,1753883451896,-958.11,0.00023203,2]
[376171191,1753883451906,-648.39,0.00023203,2]
[376171193,1753883451915,-655.42,0.00023203,2]
[376171195,1753883451924,-2542.62,0.00023203,2]
[376171197,1753883451934,-699.34,0.00023203,2]
[376171199,1753883451943,-633.61,0.00023203,2]
[376171201,1753883451952,-489.5,0.00023203,2]
[376171203,1753883451962,-200.0,0.00023239,15]
[376171205,1753883451971,-200.0,0.00023239,15]
[376171207,1753883451980,-200.0,0.00023239,15]
[376171209,1753883451989,-200.0,0.00023239,15]
[376171211,1753883451998,-200.0,0.00023239,15]
[376171213,1753883452008,-200.0,0.00023239,15]
[376171215,1753883452017,-200.0,0.00023239,15]
[376171217,1753883452026,-200.0,0.00023239,15]
[376171219,1753883452036,-200.0,0.00023239,15]
[376171221,1753883452046,-200.0,0.00023239,15]
[376171223,1753883452055,-200.0,0.00023239,15]
[376171225,1753883452064,-200.0,0.00023239,15]
[376171227,1753883452074,-200.0,0.00023239,15]
[376171229,1753883452084,-200.0,0.00023239,15]
[376171231,1753883452093,-200.0,0.00023239,15]
[376171233,1753883452104,-200.0,0.00023239,15]
[376171235,1753883452113,-200.0,0.00023239,15]
[376171237,1753883452122,-200.0,0.00023239,15]
[376171239,1753883452131,-200.0,0.00023239,15]
[376171241,1753883452142,-200.0,0.00023239,15]
[376171243,1753883452152,-200.0,0.00023239,15]
[376171245,1753883452160,-200.0,0.00023239,15]
[376171247,1753883452170,-200.0,0.00023239,15]
[376171249,1753883452179,-200.0,0.00023239,15]
[376171251,1753883452188,-200.0,0.00023239,15]
[376171253,1753883452198,-200.0,0.00023239,15]
[376171254,1753883452207,-200.0,0.00023239,15]
[376171256,1753883452216,-200.0,0.00023239,15]
[376171259,1753883452226,-200.0,0.00023239,15]
[376171261,1753883452235,-200.0,0.00023239,15]
[376171262,1753883452244,-264.0,0.00023239,15]
[376171264,1753883452253,-150.602035,0.00023253,15]
[376171266,1753883452263,-150.602035,0.00023279,8]
[376171269,1753883452272,-150.602035,0.00023279,8]
[376171270,1753883452281,-1116.09055691,0.00023279,8]
[376171272,1753883452290,-500.0,0.00023287,2]
[376171274,1753883452299,-245.0,0.00023288,7]
[376171276,1753883452308,-185.0217315,0.00023288,2]
[376171278,1753883452317,-151.0,0.000233,7]
[376171280,1753883452327,-212.373478,0.000233,7]
[376171282,1753883452337,-258.6,0.00023316,5]
[376171284,1753883452346,-31085.24246361,0.000234,2]
[376171287,1753883452356,-287.979816,0.000234,7]
[376171288,1753883452365,-287.979816,0.000234,7]
[376171290,1753883452375,-2047.0,0.000234,2]
[376171292,1753883452384,-329.520935,0.000234,7]
[376171294,1753883452395,-329.52094,0.000234,7]
[376171296,1753883452404,-199.580549,0.000234,7]
[376171298,1753883452413,-151.0,0.000234,7]
[376171300,1753883452423,-151.0,0.000234,7]
[376171302,1753883452432,-279.52819293,0.00023421,2]
[376171304,1753883452441,-460.0,0.00023474,2]
[376171307,1753883452450,-1082.98,0.00023475,2]
[376171308,1753883452459,-539.61,0.00023475,2]
[376171310,1753883452469,-460.0,0.00023475,2]
[376171313,1753883452478,-568.07,0.00023475,2]
[376171314,1753883452487,-621.16,0.00023476,2]
[376171316,1753883452497,-958.11,0.00023477,2]
[376171318,1753883452506,-648.39,0.00023477,2]
[376171321,1753883452516,-655.42,0.00023477,2]
[376171323,1753883452525,-2542.62,0.00023477,2]
[376171325,1753883452535,-699.34,0.00023477,2]
[376171326,1753883452543,-633.61,0.00023477,2]
[376171328,1753883452552,-489.5,0.00023477,2]
[376171330,1753883452561,-2000.0,0.00023486,2]
[376171333,1753883452571,-1000.0,0.000235,2]
[376171335,1753883452580,-6695.67380719,0.000235,2]
[376171346,1753883452677,-2354.81,0.00019913,2]
[376171348,1753883452686,-5795.19000007,0.000235,2]
[376171364,1753883452820,-15834.17294889,0.000235,2]
[376171366,1753883452830,-8543.71119193,0.000235,2]
[376171400,1753883453151,-353.72764066,0.00020187,2]
[376171402,1753883453162,-797.62982304,0.00020187,2]
[376171404,1753883453173,-1203.4525363,0.00020187,2]
[376171406,1753883453182,-2354.81,0.00020461,2]
[376171408,1753883453191,-2354.81,0.00020735,2]
[376171420,1753883453293,-2354.81,0.00021009,2]
[376171422,1753883453303,-2354.81,0.00021283,2]
[376171424,1753883453313,-2354.81,0.00021557,2]
[376171426,1753883453323,-2354.81,0.00021831,2]
[376171428,1753883453332,-2354.81,0.00022105,2]
[376171430,1753883453341,-4767.07934,0.000235,2]
[376171548,1753883534223,26310.6681619,0.00018719,2]
[376171549,1753883534251,32387.05821521,0.00018719,2]
[376171576,1753884093863,163.559441,0.00013699,2]
[376171612,1753884403263,4525.86,0.000188,2]
[376171613,1753884410846,45940.87304674,0.000188,2]
[376171679,1753884632626,-224.4126355,0.00018815,2]
[376171682,1753884632640,-300.0,0.00018815,2]
[376171684,1753884632652,-460.0,0.00018815,2]
[376171687,1753884632665,-2084.03184651,0.00018816,2]
[376171793,1753884639079,-460.0,0.00018815,2]
[376171795,1753884639089,-1748.13453409,0.00018816,2]
[376171797,1753884639099,-475.71690638,0.00018816,2]
[376171799,1753884639110,-460.0,0.00018816,2]
[376171801,1753884639120,-460.0,0.00018816,2]
[376171803,1753884639132,-460.0,0.00018816,2]
[376171806,1753884639143,-460.0,0.00018816,2]
[376171808,1753884639155,-460.0,0.00018816,2]
[376171810,1753884639167,-460.0,0.00018816,2]
[376171812,1753884639179,-390.03388809,0.00018816,2]
[376171815,1753884639191,-460.0,0.00018816,2]
[376171817,1753884639201,-460.0,0.00018816,2]
[376171819,1753884639213,-460.0,0.00018816,2]
[376171821,1753884639223,-460.0,0.00018816,2]
[376171823,1753884639234,-572.95,0.00018816,2]
[376171825,1753884639244,-460.0,0.00018816,2]
[376171827,1753884639255,-460.0,0.00018816,2]
[376171829,1753884639264,-266.78977484,0.00018816,2]
[376171831,1753884639275,-460.0,0.00018816,2]
[376171834,1753884639287,-499.62,0.00018816,2]
[376171836,1753884639297,-460.0,0.00018816,2]
[376171838,1753884639307,-460.0,0.00018816,2]
[376171840,1753884639317,-460.0,0.00018816,2]
[376171842,1753884639330,-460.0,0.00018816,2]
[376171844,1753884639340,-460.0,0.00018816,2]
[376171846,1753884639350,-460.0,0.00018816,2]
[376171848,1753884639359,-51.13760716,0.00018816,2]
[376171978,1753884640537,-408.86239284,0.00018816,2]
[376171980,1753884640548,-1425.83,0.00018816,2]
[376171982,1753884640560,-460.0,0.00018816,2]
[376171984,1753884640570,-460.0,0.00018816,2]
[376171986,1753884640582,-460.0,0.00018816,2]
[376171989,1753884640593,-108.55363391,0.00018816,2]
[376171991,1753884640607,-351.44636609,0.00018816,2]
[376171993,1753884640618,-460.0,0.00018816,2]
[376171995,1753884640628,-460.0,0.00018816,2]
[376171997,1753884640639,-460.0,0.00018816,2]
[376172000,1753884640650,-204.88395867,0.00018816,2]
[376172002,1753884640663,-255.11604133,0.00018816,2]
[376172004,1753884640674,-460.0,0.00018816,2]
[376172006,1753884640684,-460.0,0.00018816,2]
[376172008,1753884640695,-460.0,0.00018816,2]
[376172010,1753884640707,-460.0,0.00018816,2]
[376172013,1753884640717,-460.0,0.00018816,2]
[376172015,1753884640727,-477.94021107,0.00018816,2]
[376172017,1753884640738,-460.0,0.00018816,2]
[376172019,1753884640748,-460.0,0.00018816,2]
[376172021,1753884640759,-460.0,0.00018816,2]
[376172023,1753884640769,-460.0,0.00018816,2]
[376172025,1753884640779,-405.80258103,0.00018816,2]
[376172027,1753884640790,-460.0,0.00018816,2]
[376172030,1753884640801,-460.0,0.00018816,2]
[376172032,1753884640811,-529.69,0.00018816,2]
[376172034,1753884640822,-460.0,0.00018816,2]
[376172036,1753884640832,-460.0,0.00018816,2]
[376172038,1753884640843,-460.0,0.00018816,2]
[376172040,1753884640853,-460.0,0.00018816,2]
[376172042,1753884640864,-460.0,0.00018816,2]
[376172044,1753884640875,-460.0,0.00018816,2]
[376172047,1753884640886,-460.0,0.00018816,2]
[376172049,1753884640896,-555.1,0.00018816,2]
[376172051,1753884640907,-460.0,0.00018816,2]
[376172053,1753884640917,-460.0,0.00018816,2]
[376172055,1753884640927,-460.0,0.00018816,2]
[376172057,1753884640938,-460.0,0.00018817,2]
[376172059,1753884640949,-460.0,0.00018817,2]
[376172062,1753884640959,-460.0,0.00018817,2]
[376172064,1753884640969,-460.0,0.00018817,2]
[376172066,1753884640979,-460.0,0.00018817,2]
[376172068,1753884640990,-460.0,0.00018817,2]
[376172070,1753884641000,-460.0,0.00018817,2]
[376172072,1753884641010,-460.0,0.00018817,2]
[376172074,1753884641021,-460.0,0.00018817,2]
[376172076,1753884641031,-460.0,0.00018817,2]
[376172078,1753884641041,-460.0,0.00018817,2]
[376172099,1753884641221,-460.0,0.00018817,2]
[376172101,1753884641232,-460.0,0.00018817,2]
[376172103,1753884641241,-460.0,0.00018817,2]
[376172105,1753884641251,-479.94,0.00018817,2]
[376172107,1753884641260,-470.61095494,0.00018817,2]
[376172109,1753884641270,-460.0,0.00018817,2]
[376172111,1753884641279,-460.0,0.00018817,2]
[376172113,1753884641290,-460.0,0.00018817,2]
[376172115,1753884641299,-460.0,0.00018817,2]
[376172117,1753884641309,-460.0,0.00018817,2]
[376172119,1753884641318,-460.0,0.00018817,2]
[376172121,1753884641329,-480.02598259,0.00018817,2]
[376172123,1753884641340,-460.0,0.00018817,2]
[376172124,1753884641349,-478.51,0.00018817,2]
[376172127,1753884641358,-460.0,0.00018817,2]
[376172129,1753884641370,-460.0,0.00018817,2]
[376172131,1753884641380,-460.0,0.00018817,2]
[376172133,1753884641389,-460.0,0.00018817,2]
[376172135,1753884641398,-460.0,0.00018817,2]
[376172137,1753884641409,-460.0,0.00018817,2]
[376172139,1753884641418,-296.62631006,0.00018817,2]
[376172141,1753884641427,-460.0,0.00018817,2]
[376172143,1753884641437,-460.0,0.00018817,2]
[376172145,1753884641446,-460.0,0.00018817,2]
[376172147,1753884641456,-460.0,0.00018817,2]
[376172149,1753884641465,-460.0,0.00018817,2]
[376172151,1753884641474,-460.0,0.00018817,2]
[376172153,1753884641484,-460.0,0.00018817,2]
[376172155,1753884641493,-460.0,0.00018817,2]
[376172157,1753884641502,-460.0,0.00018817,2]
[376172159,1753884641512,-460.0,0.00018817,2]
[376172161,1753884641521,-478.28,0.00018817,2]
[376172163,1753884641531,-527.15144558,0.00018817,2]
[376172165,1753884641540,-460.0,0.00018817,2]
[376172167,1753884641549,-1018.64,0.00018817,2]
[376172169,1753884641559,-460.0,0.00018817,2]
[376172171,1753884641568,-460.0,0.00018817,2]
[376172173,1753884641580,-460.0,0.00018817,2]
[376172175,1753884641590,-460.0,0.00018817,2]
[376172177,1753884641599,-460.0,0.00018818,2]
[376172179,1753884641609,-500.0,0.00018818,2]
[376172181,1753884641618,-460.0,0.00018819,2]
[376172183,1753884641628,-460.0,0.00018819,2]
[376172185,1753884641638,-460.0,0.00018819,2]
[376172187,1753884641647,-460.0,0.00018819,2]
[376172189,1753884641657,-461.25216366,0.00018819,2]
[376172191,1753884641666,-460.0,0.00018819,2]
[376172193,1753884641675,-565.78,0.00018819,2]
[376172195,1753884641686,-262.70680667,0.000189,2]
[376172197,1753884641695,-460.0,0.00019089,2]
[376172199,1753884641704,-169.9,0.0001909,2]
[376172201,1753884641713,-322.53,0.0001909,2]
[376172203,1753884641723,-460.0,0.0001909,2]
[376172205,1753884641732,-499.62,0.0001909,2]
[376172207,1753884641741,-383.82,0.0001909,2]
[376172209,1753884641751,-1425.83,0.0001909,2]
[376172211,1753884641760,-460.0,0.0001909,2]
[376172213,1753884641769,-460.0,0.0001909,2]
[376172215,1753884641777,-280.69,0.0001909,2]
[376172217,1753884641786,-460.0,0.0001909,2]
[376172219,1753884641795,-468.35,0.0001909,2]
[376172221,1753884641805,-405.71,0.0001909,2]
[376172223,1753884641814,-460.0,0.0001909,2]
[376172225,1753884641826,-460.0,0.0001909,2]
[376172227,1753884641835,-460.0,0.0001909,2]
[376172229,1753884641845,-293.78,0.0001909,2]
[376172231,1753884641854,-460.0,0.0001909,2]
[376172233,1753884641864,-208.42,0.00019091,2]
[376172235,1753884641873,-460.0,0.00019091,2]
[376172237,1753884641883,-406.53,0.00019091,2]
[376172239,1753884641892,-168.13,0.00019091,2]
[376172241,1753884641901,-460.0,0.00019091,2]
[376172243,1753884641911,-460.0,0.00019091,2]
[376172244,1753884641921,-460.0,0.00019091,2]